bitfinex/quotes_SOLUSD_20250204
["timestamp","ask_amount","ask_price","bid_price","bid_amount"]
[1738646844498,36.90868996,204.28,204.21,21.02272727]
[1738646844907,36.90868996,204.34,204.26,36.90868996]
[1738646845106,36.90868996,204.31,204.21,57.93141723]
[1738646845290,36.90868996,204.29,204.21,57.93141723]
[1738646845489,7.76,204.41,204.23,36.90868996]
[1738646845490,36.90868996,204.31,204.23,36.90868996]
[1738646845691,0.91776157,204.39,204.27,36.90868996]
[1738646845891,36.90868996,204.33,204.25,36.90868996]
[1738646846338,36.90868996,204.44,204.31,36.90868996]
[1738646846621,36.90868996,204.32,204.25,2.1552]
[1738646846812,36.90868996,204.28,204.2,56.57661223]
[1738646847724,36.90868996,204.28,204.21,25.94942727]
[1738646847940,36.90868996,204.26,204.21,21.05272727]
[1738646848140,36.90868996,204.28,204.21,21.05272727]
[1738646848315,7.75818392,204.34,204.26,36.90868996]
[1738646848316,36.90868996,204.34,204.26,36.90868996]
[1738646848513,0.91769693,204.37,204.21,21.05272727]
[1738646848712,0.91769693,204.37,204.2,19.66792227]
[1738646848713,1.0,204.29,204.2,19.36064954]
[1738646848934,0.91836683,204.28,204.2,19.36064954]
[1738646849125,36.90868996,204.21,204.2,19.36064954]
[1738646849738,37.90868996,204.21,204.2,19.36064954]
[1738646850056,73.81737992,204.21,204.2,19.36064954]
[1738646850250,74.73590063,204.21,204.2,19.36064954]
[1738646850751,74.73587402,204.21,204.2,19.36064954]
[1738646850956,2.0,204.19,204.17,0.05966436]
[1738646851157,36.90868996,204.26,204.17,36.96835432]
[1738646851339,36.90868996,204.28,204.19,36.90868996]
[1738646851569,36.90868996,204.3,204.21,36.90868996]
[1738646851743,36.90868996,204.32,204.23,36.90868996]
[1738646851928,36.90868996,204.28,204.19,36.90868996]
[1738646852263,36.90868996,204.36,204.27,36.90868996]
[1738646852562,36.90868996,204.3,204.21,36.90868996]
[1738646852729,36.90868996,204.3,204.17,0.05966436]
[1738646852730,36.90868996,204.26,204.17,36.96835432]
[1738646852932,36.90868996,204.24,204.17,0.05966436]
[1738646853222,36.90868996,204.35,204.23,36.90868996]
[1738646853428,36.90868996,204.35,204.26,36.90868996]
[1738646853637,36.90868996,204.31,204.22,36.90868996]
[1738646853931,36.90868996,204.27,204.18,36.90868996]
[1738646854241,36.90868996,204.25,204.17,0.05966436]
[1738646854622,36.90868996,204.23,204.17,0.05966436]
[1738646855026,36.90868996,204.19,204.17,0.05966436]
[1738646855567,36.90868996,204.25,204.17,0.05966436]
[1738646855926,36.90868996,204.27,204.18,36.90868996]
[1738646856354,36.90868996,204.31,204.22,36.90868996]
[1738646856530,36.90868996,204.25,204.17,0.05966436]
[1738646856737,36.90868996,204.23,204.17,0.05966436]
[1738646857434,36.90868996,204.31,204.22,36.90868996]
[1738646857629,36.90868996,204.25,204.17,0.05966436]
[1738646857851,36.90868996,204.25,204.17,0.08966436]
[1738646858348,36.90868996,204.29,204.2,36.90868996]
[1738646858556,0.063,204.3,204.22,36.90868996]
[1738646858724,0.063,204.3,204.28,36.90868996]
[1738646859628,73.88037992,204.3,204.17,0.08966436]
[1738646859825,36.90868996,204.26,204.17,0.08966436]
[1738646860022,0.063,204.3,204.17,0.08966436]
[1738646860023,36.90868996,204.24,204.17,0.08966436]
[1738646860527,36.90868996,204.22,204.17,0.08966436]
[1738646860953,36.90868996,204.27,204.17,36.99835432]
[1738646861250,36.90868996,204.2,204.17,0.08966436]
[1738646861458,36.90868996,204.18,204.17,0.08966436]
[1738646862453,1.91850422,204.24,204.17,0.08966436]
[1738646863628,0.9184299,204.27,204.17,0.08966436]
[1738646863851,2.0,204.26,204.17,0.08966436]
[1738646864039,0.9184251,204.25,204.17,0.08966436]
[1738646864337,1.0,204.23,204.17,0.08966436]
[1738646864544,0.91849248,204.22,204.17,0.08966436]
[1738646864860,0.063,204.3,204.17,0.08966436]
[1738646864861,0.063,204.3,204.17,37.48560962]
[1738646865234,0.063,204.3,204.19,37.39594526]
[1738646865766,1.98101111,204.3,204.17,0.08966436]
[1738646865963,1.0,204.27,204.17,0.08966436]
[1738646866263,0.91835206,204.26,204.17,0.08966436]
[1738646866634,1.0,204.28,204.17,0.08966436]
[1738646866970,0.25098,204.26,204.17,0.08966436]
[1738646867134,0.91844614,204.25,204.17,0.08966436]
[1738646867531,1.0,204.2,204.17,6.436e-05]
[1738646867731,0.91860021,204.19,204.17,6.436e-05]
[1738646867972,2.0,204.21,204.17,6.436e-05]
[1738646868260,0.91863513,204.2,204.17,6.436e-05]
[1738646868454,1.91854731,204.28,204.17,6.436e-05]
[1738646868637,2.0,204.25,204.17,6.436e-05]
[1738646868835,0.91851627,204.24,204.17,6.436e-05]
[1738646869150,1.0,204.23,204.17,6.436e-05]
[1738646869358,1.0,204.21,204.17,6.436e-05]
[1738646869660,1.0,204.18,204.17,6.436e-05]
[1738646869841,0.91862449,204.2,204.17,6.436e-05]
[1738646870452,0.91856413,204.19,204.17,6.436e-05]
[1738646870956,0.25098,204.18,204.17,6.436e-05]
[1738646871255,20.0,204.14,204.1,13.38606618]
[1738646871472,1.91888709,204.13,204.1,13.38606618]
[1738646872050,0.91888709,204.13,204.1,13.38606618]
[1738646872263,1.0,204.12,204.1,13.38606618]
[1738646872562,20.0,204.14,204.1,13.38606618]
[1738646872563,0.9189731,204.11,204.1,13.38606618]
[1738646872941,0.91890975,204.13,204.1,13.38606618]
[1738646873142,0.91883595,204.15,204.1,13.38606618]
[1738646873561,0.25098,204.14,204.1,13.38606618]
[1738646873763,1.91893849,204.13,204.1,13.38606618]
[1738646873936,1.0,204.09,204.0,20.2020202]
[1738646874142,0.91917827,204.08,204.0,20.2020202]
[1738646874463,0.91904777,204.07,204.0,20.2020202]
[1738646874692,0.25098,204.03,204.0,20.2020202]
[1738646874848,2.0,204.01,203.9,20.46906917]
[1738646875048,1.91957889,204.0,203.9,20.46906917]
[1738646875460,0.91957889,204.0,203.9,20.46906917]
[1738646875843,1.0,204.06,203.9,20.46906917]
[1738646875844,0.91936637,204.05,203.9,20.46906917]
[1738646876347,0.91936637,204.05,203.9,57.86501443]
[1738646876537,0.91936637,204.05,203.9,62.76921443]
[1738646876742,1.0,204.09,203.94,37.39594526]
[1738646876743,0.91913321,204.09,203.94,37.39594526]
[1738646877051,0.91897556,204.14,203.94,37.39594526]
[1738646877251,0.25098,204.1,203.9,62.76921443]
[1738646877566,0.91919326,204.11,203.96,37.39594526]
[1738646877780,0.91919326,204.15,203.98,37.39594526]
[1738646878062,1.0,204.13,203.95,9.2957]
[1738646878258,0.91914003,204.12,203.95,9.2957]
[1738646878462,0.91914003,204.12,203.95,14.1987]
[1738646878769,1.0,204.17,203.98,37.39594526]
[1738646878770,0.91895879,204.13,203.98,37.39594526]
[1738646879073,0.91895879,204.13,203.96,37.39594526]
[1738646879540,0.91895879,204.13,203.95,9.2957]
[1738646879740,0.25098,204.12,203.95,9.2957]
[1738646879967,0.91906337,204.12,203.96,38.39594526]
[1738646880166,0.91906337,204.12,203.97,0.12549]
[1738646880343,9.1,204.19,204.0,39.71644526]
[1738646880344,0.91884776,204.15,204.0,39.71644526]
[1738646880549,0.91884776,204.15,204.0,2.3205]
[1738646881048,0.91859714,204.32,204.11,37.39594526]
[1738646881250,1.91859714,204.32,204.12,0.12549]
[1738646881553,0.91806609,204.29,204.11,37.39594526]
[1738646881752,6.57930762,204.28,204.11,37.39594526]
[1738646882058,0.063,204.3,204.21,37.39594526]
[1738646882257,0.063,204.3,204.25,37.39594526]
[1738646882476,0.063,204.3,204.27,37.39594526]
[1738646882773,0.063,204.3,204.25,37.39594526]
[1738646883067,0.063,204.3,204.2,37.39594526]
[1738646883270,0.063,204.3,204.22,37.39594526]
[1738646883483,0.063,204.3,204.27,0.12549]
[1738646883649,8.123,204.51,204.33,0.25098]
[1738646883650,0.91749203,204.49,204.33,0.25098]
[1738646883842,0.063,204.51,204.41,37.39594526]
[1738646884041,0.063,204.51,204.45,37.39594526]
[1738646884257,0.063,204.51,204.39,37.39594526]
[1738646884477,0.063,204.51,204.41,37.39594526]
[1738646884696,1.063,204.51,204.31,37.39594526]
[1738646884986,20.0,204.47,204.31,37.39594526]
[1738646885292,0.91751406,204.46,204.31,37.39594526]
[1738646885670,0.91737467,204.49,204.34,0.12549]
[1738646885849,0.91737467,204.49,204.35,37.39594526]
[1738646886049,0.98019184,204.51,204.38,0.12549]
[1738646886249,0.063,204.51,204.41,37.39594526]
[1738646886674,0.063,204.51,204.46,0.12549]
[1738646886903,0.063,204.51,204.47,37.39594526]
[1738646887186,0.063,204.51,204.5,0.12549]
[1738646887371,0.063,204.66,204.5,1.3685623]
[1738646887546,0.97933509,204.66,204.49,37.39594526]
[1738646887876,0.97933509,204.66,204.48,2.3193]
[1738646888055,0.063,204.66,204.55,37.39594526]
[1738646888455,0.063,204.66,204.57,37.39594526]
[1738646888762,0.063,204.66,204.62,0.12549]
[1738646888960,0.063,204.66,204.65,37.39594526]
[1738646889381,0.063,204.8,204.67,1.0]
[1738646889552,0.063,204.8,204.72,37.39594526]
[1738646889759,0.063,204.8,204.76,37.39594526]
[1738646890380,0.063,204.87,204.78,38.39594526]
[1738646890680,0.063,204.87,204.79,0.25098]
[1738646890873,0.063,204.87,204.8,0.36576621]
[1738646891078,0.063,204.87,204.72,1.36574501]
[1738646891079,1.063,204.87,204.72,1.36574501]
[1738646891280,0.063,204.87,204.76,37.39594526]
[1738646891606,0.97825568,204.87,204.74,37.39594526]
[1738646891801,0.97825568,204.87,204.7,3.3702]
[1738646891802,0.97825568,204.87,204.78,37.39594526]
[1738646891948,0.063,204.87,204.84,37.39594526]
[1738646892148,0.063,204.87,204.86,37.39594526]
[1738646892464,0.063,204.89,204.86,37.39594526]
[1738646892660,0.063,204.89,204.88,37.39594526]
[1738646892888,0.063,204.89,204.86,37.76132487]
[1738646893197,0.063,204.89,204.86,0.36537961]
[1738646893364,0.063,204.89,204.82,37.39594526]
[1738646893568,0.063,204.89,204.8,4.8827]
[1738646893904,0.063,204.89,204.82,37.39594526]
[1738646894067,0.063,204.89,204.8,37.39594526]
[1738646894272,0.063,204.89,204.84,37.39594526]
[1738646894491,0.063,204.89,204.86,37.39594526]
[1738646894690,0.063,204.89,204.84,37.39594526]
[1738646894882,0.063,204.89,204.8,37.39594526]
[1738646895598,0.063,204.89,204.76,37.39594526]
[1738646895984,0.063,204.89,204.73,4.8843]
[1738646896171,0.063,204.89,204.76,37.39594526]
[1738646896378,0.063,204.89,204.8,37.39594526]
[1738646896702,0.063,204.89,204.84,37.39594526]
[1738646897114,0.063,204.89,204.8,37.39594526]
[1738646897704,0.063,204.89,204.83,0.25098]
[1738646897912,0.063,204.89,204.82,37.39594526]
[1738646898074,0.063,204.89,204.84,37.39594526]
[1738646898393,0.063,204.89,204.8,37.39594526]
[1738646898779,0.063,204.89,204.76,37.39594526]
[1738646899001,0.063,204.89,204.74,37.39594526]
[1738646899305,0.91541876,204.88,204.71,1.0]
[1738646899519,1.91541876,204.88,204.66,37.39594526]
[1738646899700,0.91541876,204.88,204.72,37.39594526]
[1738646900003,0.063,204.89,204.8,37.64692526]
[1738646900610,0.063,204.89,204.73,37.39594526]
[1738646900904,0.91542877,204.88,204.69,38.39594526]
[1738646901073,0.91542877,204.88,204.69,37.39594526]
[1738646901412,0.91542877,204.88,204.69,38.39594526]
[1738646901626,0.91542877,204.88,204.69,37.39594526]
[1738646901913,0.25098,204.84,204.63,37.39594526]
[1738646902114,0.91596199,204.85,204.72,37.39594526]
[1738646902273,0.063,204.89,204.77,0.12549]
[1738646902606,0.063,204.89,204.8,37.39594526]
[1738646902775,0.063,204.89,204.72,30.0]
[1738646902977,1.0,204.69,204.55,37.39594526]
[1738646903185,2.0,204.67,204.55,37.39594526]
[1738646903397,1.0,204.67,204.57,37.39594526]
[1738646903700,1.0,204.69,204.61,37.39594526]
[1738646903901,1.0,204.78,204.64,0.25098]
[1738646904112,1.0,204.79,204.66,0.25098]
[1738646904317,2.0,204.81,204.7,0.25098]
[1738646904605,1.0,204.83,204.71,37.39594526]
[1738646904980,2.0,204.78,204.65,37.39594526]
[1738646905179,1.0,204.72,204.61,39.71214526]
[1738646905421,1.0,204.72,204.61,2.3162]
[1738646905630,1.0,204.7,204.61,2.3162]
[1738646905780,1.0,204.68,204.57,37.39594526]
[1738646906104,1.0,204.74,204.62,0.12549]
[1738646906302,1.0,204.73,204.65,37.39594526]
[1738646906722,1.0,204.69,204.57,37.39594526]
[1738646906928,1.0,204.69,204.56,4.8884]
[1738646907413,1.0,204.62,204.51,39.66424526]
[1738646907589,1.0,204.75,204.51,39.66424526]
[1738646907590,20.0,204.73,204.58,1.0]
[1738646907801,0.914074,204.72,204.55,1.0]
[1738646908010,20.0,204.68,204.61,1.0]
[1738646908204,20.0,204.68,204.61,2.0]
[1738646908410,20.0,204.68,204.63,1.0]
[1738646908708,20.0,204.68,204.54,0.12549]
[1738646908709,0.914074,204.75,204.65,1.0]
[1738646908905,20.0,204.73,204.67,2.0]
[1738646909105,6.85575353,204.76,204.67,2.0]
[1738646909106,0.914074,204.76,204.67,2.0]
[1738646909330,0.914074,204.86,204.72,1.0]
[1738646909509,0.914074,204.86,204.77,1.0]
[1738646909706,0.914074,204.86,204.8,1.0]
[1738646909948,0.977074,204.89,204.82,1.0]
[1738646910238,20.0,204.86,204.8,1.0]
[1738646910445,0.914074,204.85,204.76,1.0]
[1738646910639,0.914074,204.88,204.79,1.0]
[1738646910816,0.914074,204.88,204.77,1.0]
[1738646911016,0.914074,204.88,204.82,1.0]
[1738646911226,0.063,204.89,204.78,2.0]
[1738646911437,0.977074,204.89,204.76,1.0]
[1738646911606,0.12549,204.88,204.71,2.0]
[1738646911811,20.0,204.84,204.72,1.0]
[1738646912031,0.914074,204.83,204.7,1.0]
[1738646912219,0.914074,204.83,204.68,1.0]
[1738646912433,20.0,204.8,204.69,1.0]
[1738646912733,27.39291791,204.79,204.63,1.0]
[1738646912906,0.25098,204.78,204.59,1.0]
[1738646913112,20.0,204.74,204.61,1.0]
[1738646913312,0.914074,204.73,204.61,1.0]
[1738646913507,0.914074,204.73,204.66,1.0]
[1738646913715,0.914074,204.76,204.7,1.0]
[1738646914034,0.914074,204.82,204.72,1.0]
[1738646914211,0.063,204.92,204.74,1.0]
[1738646914212,0.914074,204.88,204.74,1.0]
[1738646914412,0.914074,204.88,204.73,1.0]
[1738646914734,0.12549,204.83,204.69,1.0]
[1738646915026,0.914074,204.82,204.73,1.0]
[1738646915245,20.0,204.84,204.73,1.0]
[1738646915411,0.914074,204.83,204.73,1.0]
[1738646915606,0.12549,204.82,204.71,1.0]
[1738646915920,0.12549,204.82,204.61,37.39594526]
[1738646915921,20.0,204.78,204.62,1.0]
[1738646916112,0.914074,204.77,204.7,1.0]
[1738646916340,26.47884391,204.78,204.7,1.0]
[1738646916341,20.0,204.78,204.7,1.0]
[1738646916651,0.914074,204.77,204.7,1.0]
[1738646916819,0.914074,204.77,204.66,1.0]
[1738646916820,0.914074,204.81,204.66,1.0]
[1738646917013,6.47884391,204.78,204.64,1.0]
[1738646917214,0.25098,204.74,204.58,1.0]
[1738646917423,0.25098,204.69,204.52,1.0]
[1738646917631,0.12549,204.64,204.5,1.0]
[1738646917832,0.914074,204.63,204.52,1.0]
[1738646918335,20.12549,204.59,204.45,0.03]
[1738646918515,0.12549,204.57,204.45,0.03]
[1738646918721,20.0,204.55,204.45,0.03]
[1738646918930,0.914074,204.54,204.45,0.03]
[1738646919123,0.914074,204.54,204.45,1.03]
[1738646919331,0.914074,204.54,204.45,0.03]
[1738646919625,0.914074,204.57,204.53,1.0]
[1738646919829,0.914074,204.71,204.55,1.0]
[1738646920021,0.914074,204.71,204.59,1.0]
[1738646920223,0.914074,204.71,204.62,1.0]
[1738646920412,0.914074,204.71,204.6,1.0]
[1738646920615,0.914074,204.8,204.6,1.0]
[1738646920825,12.55429706,204.8,204.59,1.0]
[1738646921034,12.55429706,204.8,204.62,1.0]
[1738646921220,0.12549,204.79,204.61,1.0]
[1738646921427,20.0,204.75,204.59,2.0]
[1738646921727,0.914074,204.74,204.59,1.0]
[1738646921941,20.0,204.72,204.59,2.0]
[1738646922120,0.914074,204.71,204.59,2.0]
[1738646922326,37.24197107,204.6,204.59,2.0]
[1738646922530,74.48394214,204.6,204.56,1.0]
[1738646922716,37.24197107,204.57,204.51,2.0]
[1738646923022,37.24197107,204.52,204.51,1.0]
[1738646923227,37.24197107,204.52,204.46,1.0]
[1738646923564,37.24197107,204.47,204.46,1.0]
[1738646923859,37.24197107,204.47,204.45,0.03]
[1738646924811,37.24197107,204.47,204.34,2.0]
[1738646924812,20.0,204.43,204.34,2.0]
[1738646925010,37.24197107,204.5,204.32,1.0]
[1738646925011,37.24197107,204.35,204.32,1.0]
[1738646925225,37.24197107,204.33,204.32,1.0]
[1738646925436,74.48394214,204.33,204.22,1.0]
[1738646925642,0.914074,204.32,204.29,1.0]
[1738646925838,0.914074,204.39,204.29,1.0]
[1738646926023,37.24197107,204.3,204.29,1.0]
[1738646926747,37.24197107,204.42,204.39,1.0]
[1738646927044,37.24197107,204.46,204.44,1.0]
[1738646927349,37.24197107,204.48,204.46,2.0]
[1738646927543,37.24197107,204.5,204.49,1.0]
[1738646927750,37.24197107,204.52,204.51,1.0]
[1738646928160,37.24197107,204.54,204.51,2.0]
[1738646928456,37.24197107,204.54,204.53,1.0]
[1738646928821,37.24197107,204.54,204.49,1.0]
[1738646929022,37.24197107,204.5,204.49,1.0]
[1738646929260,37.24197107,204.54,204.53,1.0]
[1738646929468,37.24197107,204.54,204.5,1.0]
[1738646929758,37.24197107,204.52,204.48,1.0]
[1738646930056,37.24197107,204.5,204.49,1.0]
[1738646930257,37.24197107,204.52,204.51,1.0]
[1738646930562,37.24197107,204.54,204.53,2.0]
[1738646931432,37.24197107,204.54,204.52,1.0]
[1738646931676,38.15604507,204.53,204.49,1.0]
[1738646931836,37.24197107,204.5,204.49,1.0]
[1738646932534,37.24197107,204.5,204.49,2.0]
[1738646932772,37.24197107,204.54,204.53,1.0]
[1738646933280,74.48394214,204.54,204.44,1.0]
[1738646933580,37.24197107,204.6,204.46,1.0]
[1738646933581,37.24197107,204.47,204.46,1.0]
[1738646933780,37.24197107,204.53,204.5,2.0]
[1738646933967,37.24197107,204.53,204.52,2.0]
[1738646934293,37.24197107,204.7,204.6,1.0]
[1738646934294,37.24197107,204.61,204.6,1.0]
[1738646934494,37.24197107,204.67,204.66,2.0]
[1738646934652,37.24197107,204.67,204.66,1.0]
[1738646934969,37.24197107,204.67,204.66,2.0]
[1738646935157,37.24197107,204.69,204.68,1.0]
[1738646935343,37.24197107,204.69,204.62,1.0]
[1738646935550,37.24197107,204.63,204.61,1.0]
[1738646935770,37.24197107,204.62,204.61,1.0]
[1738646936266,37.24197107,204.62,204.56,1.0]
[1738646936462,0.914074,204.61,204.59,1.0]
[1738646936659,0.914074,204.61,204.45,1.0]
[1738646936660,74.48394214,204.6,204.58,1.0]
[1738646936879,37.24197107,204.6,204.58,1.0]
[1738646937389,74.48394214,204.6,204.54,1.0]
[1738646937701,0.914074,204.59,204.54,1.0]
[1738646937876,37.24197107,204.55,204.54,1.0]
[1738646938473,37.24197107,204.55,204.5,1.0]
[1738646938702,37.24197107,204.51,204.47,1.0]
[1738646938994,37.24197107,204.48,204.45,2.0]
[1738646939165,37.24197107,204.48,204.47,2.0]
[1738646939776,37.24197107,204.55,204.53,1.0]
[1738646940303,0.914074,204.68,204.56,1.0]
[1738646940304,37.24197107,204.57,204.56,1.0]
[1738646940596,37.24197107,204.57,204.5,1.0]
[1738646940766,0.914074,204.68,204.61,1.0]
[1738646940767,37.24197107,204.62,204.61,1.0]
[1738646940966,0.914074,204.81,204.69,1.0]
[1738646941296,0.914074,204.81,204.75,2.0]
[1738646941467,0.914074,204.88,204.77,1.0]
[1738646941673,0.914074,204.88,204.74,2.0]
[1738646941903,0.25098,204.84,204.67,1.0]
[1738646942130,37.24197107,204.68,204.6,1.0]
[1738646942424,37.24197107,204.61,204.6,2.0]
[1738646942601,37.24197107,204.67,204.64,1.0]
[1738646942804,37.24197107,204.65,204.64,1.0]
[1738646943000,37.24197107,204.65,204.6,1.0]
[1738646943208,37.24197107,204.62,204.61,1.0]
[1738646943417,74.48394214,204.62,204.52,1.0]
[1738646943630,0.914074,204.68,204.59,1.0]
[1738646943804,37.24197107,204.6,204.51,1.0]
[1738646944002,0.914074,204.59,204.5,1.0]
[1738646944309,37.24197107,204.6,204.56,1.0]
[1738646944631,57.24197107,204.57,204.49,1.0]
[1738646944941,74.48394214,204.5,204.47,1.0]
[1738646945105,37.24197107,204.48,204.47,2.0]
[1738646945517,37.24197107,204.48,204.43,1.0]
[1738646945719,37.24197107,204.45,204.43,1.0]
[1738646945936,37.24197107,204.45,204.41,1.0]
[1738646946254,37.24197107,204.42,204.41,1.0]
[1738646946464,37.24197107,204.44,204.43,1.0]
[1738646946629,37.24197107,204.44,204.4,1.0]
[1738646946960,37.24197107,204.42,204.4,1.0]
[1738646947257,37.24197107,204.42,204.4,2.0]
[1738646947465,37.24197107,204.49,204.46,1.0]
[1738646947646,37.24197107,204.49,204.48,2.0]
[1738646948161,37.24197107,204.49,204.4,1.0]
[1738646948321,20.914074,204.57,204.46,1.0]
[1738646948527,37.24197107,204.47,204.46,1.0]
[1738646948867,37.24197107,204.47,204.39,1.03]
[1738646949029,0.914074,204.46,204.41,1.0]
[1738646949333,37.24197107,204.42,204.39,1.03]
[1738646949528,74.48394214,204.4,204.39,0.03]
[1738646949942,0.914074,204.49,204.39,0.03]
[1738646949943,37.24197107,204.43,204.4,1.0]
[1738646950135,37.24197107,204.45,204.44,2.0]
[1738646950331,37.24197107,204.49,204.48,2.0]
[1738646950549,37.24197107,204.49,204.41,37.24197107]
[1738646950550,37.24197107,204.53,204.52,2.0]
[1738646950849,37.24197107,204.53,204.46,1.0]
[1738646951067,0.914074,204.59,204.52,1.0]
[1738646951229,37.24197107,204.6,204.57,1.0]
[1738646951556,0.914074,204.59,204.52,2.0]
[1738646951734,0.914074,204.59,204.5,2.0]
[1738646951935,37.24197107,204.53,204.52,1.0]
[1738646952143,37.24197107,204.57,204.56,2.0]
[1738646952669,37.24197107,204.57,204.5,2.0]
[1738646952826,0.914074,204.59,204.55,1.0]
[1738646953025,37.24197107,204.6,204.55,2.0]
[1738646953226,37.24197107,204.56,204.55,1.0]
[1738646953446,37.24197107,204.56,204.51,2.0]
[1738646953664,37.24197107,204.52,204.47,1.0]
[1738646953827,37.24197107,204.48,204.41,1.0]
[1738646954027,37.24197107,204.42,204.41,1.0]
[1738646954275,37.24197107,204.44,204.43,2.0]
[1738646954424,37.24197107,204.46,204.45,2.0]
[1738646954843,37.24197107,204.5,204.47,2.0]
[1738646955130,0.914074,204.56,204.49,1.0]
[1738646955329,37.24197107,204.5,204.49,2.0]
[1738646955762,37.24197107,204.5,204.47,2.0]
[1738646956040,37.24197107,204.48,204.45,0.03]
[1738646956243,37.24197107,204.5,204.39,0.03]
[1738646956244,20.0,204.43,204.39,0.03]
[1738646956535,20.0,204.43,204.26,1.0]
[1738646956536,37.24197107,204.35,204.26,1.0]
[1738646956839,37.24197107,204.27,204.22,1.0]
[1738646957158,37.24197107,204.27,204.19,7.45283583]
[1738646957159,20.0,204.22,204.19,7.45283583]
[1738646957454,74.48394214,204.2,204.19,7.45283583]
[1738646957633,37.24197107,204.22,204.21,1.0]
[1738646958356,20.0,204.19,204.18,0.03]
[1738646958560,58.15604507,204.19,204.18,0.0001]
[1738646958868,58.28153507,204.19,204.11,1.0]
[1738646959167,37.24197107,204.12,204.11,1.0]
[1738646959474,37.24197107,204.12,204.04,1.0]
[1738646959475,74.48394214,204.12,204.05,1.0]
[1738646959633,37.24197107,204.1,204.06,1.0]
[1738646959830,37.24197107,204.07,204.05,1.0]
[1738646960052,37.24197107,204.07,204.06,1.0]
[1738646960354,37.24197107,204.11,204.1,2.0]
[1738646960573,37.24197107,204.18,204.17,2.0]
[1738646960877,2.3875,204.38,204.06,4.9005]
[1738646960878,37.24197107,204.2,204.19,2.0]
[1738646961177,37.24197107,204.26,204.25,2.0]
[1738646961556,0.914074,204.36,204.27,1.0]
[1738646961878,37.24197107,204.3,204.29,1.0]
[1738646962076,37.24197107,204.3,203.95,1.0]
[1738646962077,0.2508,204.08,203.95,1.0]
[1738646962278,37.24197107,203.96,203.92,4.9038]
[1738646962577,37.24197107,203.93,203.91,2.4824]
[1738646962797,37.24197107,203.93,203.91,7.3863]
[1738646963251,37.24197107,203.93,203.91,2.4824]
[1738646963947,24.29587136,204.09,203.91,2.4824]
[1738646963948,37.24197107,203.97,203.91,2.4824]
[1738646964169,37.24197107,204.03,203.94,0.7492]
[1738646964382,37.24197107,204.07,203.97,37.24197107]
[1738646964576,37.24197107,204.07,203.98,1.00018]
[1738646964757,37.24197107,204.03,203.96,0.7492]
[1738646964958,37.24197107,204.09,203.99,37.24197107]
[1738646965185,37.24197107,204.11,204.03,0.25098]
[1738646965481,37.24197107,204.13,204.05,37.49295107]
[1738646965654,37.24197107,204.13,204.05,0.25098]
[1738646965851,37.24197107,204.11,204.04,1.7492]
[1738646966073,37.24197107,204.11,204.05,4.9007]
[1738646966285,37.24197107,204.07,204.01,4.9016]
[1738646966653,37.24197107,204.03,203.96,4.9029]
[1738646966879,37.24197107,204.05,203.98,0.25098]
[1738646967076,37.24197107,204.11,204.02,0.25098]
[1738646967381,37.24197107,204.13,204.06,0.12549]
[1738646967562,37.24197107,204.16,204.06,37.24197107]
[1738646967767,37.24197107,204.1,204.0,37.24197107]
[1738646968081,37.24197107,204.07,203.98,37.99117107]
[1738646968282,37.24197107,204.07,203.98,37.24197107]
[1738646968581,37.24197107,204.07,203.96,4.9329]
[1738646968582,37.24197107,204.01,203.96,0.03]
[1738646968772,37.24197107,203.99,203.96,0.03]
[1738646969356,37.24197107,204.01,203.96,0.03]
[1738646969576,37.24197107,203.99,203.96,0.03]
[1738646969786,37.24197107,203.97,203.96,0.03]
[1738646969985,37.49277107,203.97,203.96,0.03]
[1738646971280,37.49277107,203.99,203.96,0.03]